[Event "Live Chess"]
[Site "Chess.com"]
[Date "2023.05.21"]
[Round "-"]
[White "Biranidun"]
[Black "educatedlad"]
[Result "1-0"]
[WhiteElo "2686"]
[BlackElo "1607"]
[TimeControl "300"]
[EndTime "16:11:28 PDT"]
[Termination "Biranidun won by resignation"]

1. e4 {[%clk 0:04:59.2]} 1... e6 {[%clk 0:04:59.1]} 2. d4 {[%clk 0:04:58.2]}
2... d5 {[%clk 0:04:58.8]} 3. e5 {[%clk 0:04:57.7]} 3... c5 {[%clk 0:04:57.7]}
4. c3 {[%clk 0:04:57]} 4... Nc6 {[%clk 0:04:57.3]} 5. Nf3 {[%clk 0:04:56.2]}
5... Qb6 {[%clk 0:04:56.4]} 6. Bd3 {[%clk 0:04:54.7]} 6... cxd4 {[%clk
0:04:55.3]} 7. O-O {[%clk 0:04:53.3]} 7... Bd7 {[%clk 0:04:54.3]} 8. cxd4 {[%clk
0:04:50]} 8... Nxd4 {[%clk 0:04:50.4]} 9. Nbd2 {[%clk 0:04:48.7]} 9... Nxf3+
{[%clk 0:04:48.9]} 10. Nxf3 {[%clk 0:04:48.6]} 10... Bb5 {[%clk 0:04:47]} 11.
Be3 {[%clk 0:04:47.2]} 11... Qa6 {[%clk 0:04:46.5]} 12. Bxb5+ {[%clk 0:04:46.1]}
12... Qxb5 {[%clk 0:04:46.4]} 13. Nd4 {[%clk 0:04:45.6]} 13... Qd7 {[%clk
0:04:44.4]} 14. Qb3 {[%clk 0:04:39.9]} 14... Rc8 {[%clk 0:04:42.6]} 15. Rac1
{[%clk 0:04:37.6]} 15... Ne7 {[%clk 0:04:40.2]} 16. Rxc8+ {[%clk 0:04:35.8]}
16... Nxc8 {[%clk 0:04:39]} 17. Rc1 {[%clk 0:04:34]} 17... Nb6 {[%clk
0:04:37.1]} 18. Nb5 {[%clk 0:04:33.2]} 18... Nc4 {[%clk 0:04:27.6]} 19. Bxa7
{[%clk 0:04:25.8]} 19... Be7 {[%clk 0:04:25.4]} 20. Bd4 {[%clk 0:04:20.9]} 20...
O-O {[%clk 0:04:24]} 21. a4 {[%clk 0:04:18]} 21... Rc8 {[%clk 0:04:21.7]} 22.
Qg3 {[%clk 0:04:10.9]} 22... Bf8 {[%clk 0:04:03]} 23. h3 {[%clk 0:04:09.5]}
23... Ra8 {[%clk 0:03:56.1]} 24. b3 {[%clk 0:04:08.5]} 24... Na5 {[%clk
0:03:53]} 25. Rc7 {[%clk 0:04:07.6]} 25... Qe8 {[%clk 0:03:47.4]} 26. Nd6 {[%clk
0:04:03.6]} 26... Bxd6 {[%clk 0:03:45.3]} 27. exd6 {[%clk 0:04:03.5]} 27... g6
{[%clk 0:03:31.5]} 28. Qe5 {[%clk 0:02:46.3]} 1-0

[Event "Live Chess"]
[Site "Chess.com"]
[Date "2023.05.21"]
[Round "-"]
[White "Conradical12"]
[Black "mikkyb4"]
[Result "1-0"]
[WhiteElo "1617"]
[BlackElo "1030"]
[TimeControl "300"]
[EndTime "16:11:39 PDT"]
[Termination "Conradical12 won by checkmate"]

1. e4 {[%clk 0:04:58.4]} 1... g6 {[%clk 0:04:59.9]} 2. d4 {[%clk 0:04:56.6]}
2... Bg7 {[%clk 0:04:57.1]} 3. Nf3 {[%clk 0:04:56]} 3... d6 {[%clk 0:04:52.7]}
4. Nc3 {[%clk 0:04:53.9]} 4... a6 {[%clk 0:04:51.9]} 5. Be3 {[%clk 0:04:51.5]}
5... b5 {[%clk 0:04:50.1]} 6. Qd2 {[%clk 0:04:49.7]} 6... Bb7 {[%clk 0:04:47.2]}
7. O-O-O {[%clk 0:04:47.4]} 7... Nd7 {[%clk 0:04:45.7]} 8. h4 {[%clk 0:04:37.2]}
8... h6 {[%clk 0:04:43.6]} 9. a3 {[%clk 0:04:31]} 9... Rc8 {[%clk 0:04:41.2]}
10. e5 {[%clk 0:04:25.1]} 10... c5 {[%clk 0:04:36.7]} 11. dxc5 {[%clk 0:04:23]}
11... Nxc5 {[%clk 0:04:34.8]} 12. exd6 {[%clk 0:04:21.4]} 12... exd6 {[%clk
0:04:33.7]} 13. Bxc5 {[%clk 0:04:19.4]} 13... Rxc5 {[%clk 0:04:32.6]} 14. Bd3
{[%clk 0:03:58.6]} 14... Bxc3 {[%clk 0:04:13.2]} 15. Rhe1+ {[%clk 0:03:55.1]}
15... Ne7 {[%clk 0:04:09.6]} 16. bxc3 {[%clk 0:03:53.3]} 16... Qa5 {[%clk
0:04:05.2]} 17. Qe3 {[%clk 0:03:38.6]} 17... Qxa3+ {[%clk 0:03:58.3]} 18. Kd2
{[%clk 0:03:37.3]} 18... Qxc3+ {[%clk 0:03:55.2]} 19. Ke2 {[%clk 0:03:36.1]}
19... Bxf3+ {[%clk 0:03:17.1]} 20. Kf1 {[%clk 0:03:31.1]} 20... Bxd1 {[%clk
0:03:13.6]} 21. Qxe7# {[%clk 0:03:29.4]} 1-0

[Event "Live Chess"]
[Site "Chess.com"]
[Date "2023.05.21"]
[Round "-"]
[White "wadsy27"]
[Black "GEMdzq"]
[Result "1-0"]
[WhiteElo "2567"]
[BlackElo "2215"]
[TimeControl "300"]
[EndTime "16:11:48 PDT"]
[Termination "wadsy27 won on time"]

1. Nf3 {[%clk 0:04:58.2]} 1... c5 {[%clk 0:04:58.5]} 2. g3 {[%clk 0:04:56.3]}
2... Nc6 {[%clk 0:04:56.8]} 3. Bg2 {[%clk 0:04:55.6]} 3... Nf6 {[%clk 0:04:55]}
4. O-O {[%clk 0:04:54.3]} 4... d5 {[%clk 0:04:53.2]} 5. d4 {[%clk 0:04:52.9]}
5... cxd4 {[%clk 0:04:42.2]} 6. Nxd4 {[%clk 0:04:50.9]} 6... e5 {[%clk
0:04:41.4]} 7. Nxc6 {[%clk 0:04:50.3]} 7... bxc6 {[%clk 0:04:40.6]} 8. c4 {[%clk
0:04:49.9]} 8... Be6 {[%clk 0:04:38.4]} 9. Nc3 {[%clk 0:04:49.3]} 9... Be7
{[%clk 0:04:20.7]} 10. cxd5 {[%clk 0:04:45.1]} 10... cxd5 {[%clk 0:04:19.6]} 11.
Qa4+ {[%clk 0:04:42.2]} 11... Bd7 {[%clk 0:04:10.3]} 12. Qa6 {[%clk 0:04:38.5]}
12... Be6 {[%clk 0:03:12.7]} 13. Rd1 {[%clk 0:04:31.1]} 13... O-O {[%clk
0:03:10.4]} 14. Bg5 {[%clk 0:04:29.9]} 14... Rb8 {[%clk 0:02:54.1]} 15. Bxf6
{[%clk 0:04:28.5]} 15... Bxf6 {[%clk 0:02:53.2]} 16. Nxd5 {[%clk 0:04:26]} 16...
Bxd5 {[%clk 0:02:51.9]} 17. Rxd5 {[%clk 0:04:21.8]} 17... Qc7 {[%clk 0:02:49.8]}
18. b3 {[%clk 0:04:18.2]} 18... e4 {[%clk 0:02:43]} 19. Rad1 {[%clk 0:04:16.5]}
19... e3 {[%clk 0:02:41.1]} 20. fxe3 {[%clk 0:04:12.3]} 20... Rfe8 {[%clk
0:02:33.9]} 21. Rd7 {[%clk 0:04:05.2]} 21... Qc2 {[%clk 0:02:27.8]} 22. Rf1
{[%clk 0:03:42.2]} 22... Rxe3 {[%clk 0:02:01.3]} 23. Qxa7 {[%clk 0:03:24.2]}
23... Rbe8 {[%clk 0:01:59.7]} 24. Bf3 {[%clk 0:03:11.7]} 24... Qg6 {[%clk
0:01:33.3]} 25. Rb7 {[%clk 0:03:01.4]} 25... Bg5 {[%clk 0:01:22.8]} 26. Rb8
{[%clk 0:02:49.6]} 26... Re6 {[%clk 0:01:13.3]} 27. Rxe8+ {[%clk 0:02:47.3]}
27... Rxe8 {[%clk 0:01:12.4]} 28. Kg2 {[%clk 0:02:44.6]} 28... h5 {[%clk
0:01:07.5]} 29. Qd7 {[%clk 0:02:16.7]} 29... Re7 {[%clk 0:00:56]} 30. Qd3 {[%clk
0:02:15.1]} 30... Qh6 {[%clk 0:00:41.9]} 31. a4 {[%clk 0:01:56.5]} 31... h4
{[%clk 0:00:40.4]} 32. Qf5 {[%clk 0:01:45.2]} 32... Bf6 {[%clk 0:00:29]} 33. Rd1
{[%clk 0:01:39.2]} 33... Re8 {[%clk 0:00:23.3]} 34. a5 {[%clk 0:01:32.1]} 34...
Qe3 {[%clk 0:00:19.7]} 35. a6 {[%clk 0:01:23.4]} 35... Bd4 {[%clk 0:00:18.5]}
36. Rf1 {[%clk 0:01:11.2]} 36... Qxb3 {[%clk 0:00:14.6]} 37. Qd7 {[%clk
0:01:09.7]} 37... h3+ {[%clk 0:00:12.4]} 38. Kxh3 {[%clk 0:01:06.7]} 38... Qe6+
{[%clk 0:00:11.5]} 39. Qxe6 {[%clk 0:01:06]} 39... Rxe6 {[%clk 0:00:11.4]} 40.
Rd1 {[%clk 0:00:58.8]} 40... Be3 {[%clk 0:00:07.2]} 41. Ra1 {[%clk 0:00:56]}
41... Ba7 {[%clk 0:00:05.5]} 42. Kg2 {[%clk 0:00:54.2]} 42... g6 {[%clk
0:00:04.3]} 43. Ra2 {[%clk 0:00:53.7]} 43... Kg7 {[%clk 0:00:03.7]} 44. Bd5
{[%clk 0:00:53]} 44... Re5 {[%clk 0:00:02.4]} 45. e4 {[%clk 0:00:52.5]} 45... f5
{[%clk 0:00:02]} 46. Rb2 {[%clk 0:00:51.2]} 46... fxe4 {[%clk 0:00:01.4]} 47.
Rb7+ {[%clk 0:00:50.3]} 47... Kf6 {[%clk 0:00:01.1]} 48. Bxe4 {[%clk 0:00:46.3]}
48... Rxe4 {[%clk 0:00:00.1]} 49. Rxa7 {[%clk 0:00:45.8]} 1-0

[Event "Live Chess"]
[Site "Chess.com"]
[Date "2023.05.21"]
[Round "-"]
[White "f4nomore"]
[Black "whitedjohn"]
[Result "0-1"]
[WhiteElo "1422"]
[BlackElo "1651"]
[TimeControl "300"]
[EndTime "16:11:50 PDT"]
[Termination "whitedjohn won by checkmate"]

1. b3 {[%clk 0:04:54.8]} 1... Nf6 {[%clk 0:04:59.5]} 2. Bb2 {[%clk 0:04:52.3]}
2... d5 {[%clk 0:04:58.7]} 3. e3 {[%clk 0:04:48.1]} 3... c5 {[%clk 0:04:56.7]}
4. Nf3 {[%clk 0:04:46.2]} 4... Nc6 {[%clk 0:04:54]} 5. Be2 {[%clk 0:04:44.6]}
5... Bg4 {[%clk 0:04:51.4]} 6. O-O {[%clk 0:04:42.9]} 6... e6 {[%clk 0:04:50.8]}
7. Ne5 {[%clk 0:04:39.4]} 7... Bxe2 {[%clk 0:04:42.9]} 8. Qxe2 {[%clk
0:04:36.8]} 8... Be7 {[%clk 0:04:34.1]} 9. Nxc6 {[%clk 0:04:33.6]} 9... bxc6
{[%clk 0:04:33.7]} 10. Nc3 {[%clk 0:04:26.3]} 10... O-O {[%clk 0:04:32.8]} 11.
d3 {[%clk 0:04:23.8]} 11... d4 {[%clk 0:04:29]} 12. Nd1 {[%clk 0:04:12.8]} 12...
e5 {[%clk 0:04:25]} 13. exd4 {[%clk 0:04:10.6]} 13... exd4 {[%clk 0:04:22.1]}
14. c3 {[%clk 0:04:03.4]} 14... Re8 {[%clk 0:04:07.1]} 15. Qf3 {[%clk
0:03:57.9]} 15... Qd7 {[%clk 0:03:48.9]} 16. b4 {[%clk 0:03:47.2]} 16... cxb4
{[%clk 0:03:41.7]} 17. cxd4 {[%clk 0:03:42.6]} 17... Qd5 {[%clk 0:03:36.9]} 18.
Qh3 {[%clk 0:03:29.6]} 18... c5 {[%clk 0:03:23.8]} 19. Ne3 {[%clk 0:03:26]}
19... Qd7 {[%clk 0:03:17.6]} 20. Nf5 {[%clk 0:02:52.5]} 20... cxd4 {[%clk
0:03:09.3]} 21. Bxd4 {[%clk 0:02:39.8]} 21... g6 {[%clk 0:02:40]} 22. Bxf6
{[%clk 0:01:57.5]} 22... Qxf5 {[%clk 0:02:34.8]} 23. Bxe7 {[%clk 0:01:44.9]}
23... Qxh3 {[%clk 0:02:30.5]} 24. gxh3 {[%clk 0:01:41.7]} 24... Rxe7 {[%clk
0:02:30]} 25. Rad1 {[%clk 0:01:35.9]} 25... Rd8 {[%clk 0:02:26.8]} 26. d4 {[%clk
0:01:34.3]} 26... Red7 {[%clk 0:02:24.4]} 27. Kg2 {[%clk 0:01:31.9]} 27... Rxd4
{[%clk 0:02:22.5]} 28. Rxd4 {[%clk 0:01:30.4]} 28... Rxd4 {[%clk 0:02:21.2]} 29.
Re1 {[%clk 0:01:29.1]} 29... Rd2 {[%clk 0:02:18]} 30. Re8+ {[%clk 0:01:25.6]}
30... Kg7 {[%clk 0:02:15.1]} 31. Rb8 {[%clk 0:01:23.6]} 31... a5 {[%clk
0:02:11.8]} 32. Kg3 {[%clk 0:01:07.7]} 32... Rxa2 {[%clk 0:02:08.1]} 33. f3
{[%clk 0:01:05.5]} 33... Ra3 {[%clk 0:02:06.1]} 34. h4 {[%clk 0:00:59.5]} 34...
b3 {[%clk 0:02:04.4]} 35. h3 {[%clk 0:00:58.4]} 35... a4 {[%clk 0:02:03.1]} 36.
Kg4 {[%clk 0:00:56.3]} 36... Ra2 {[%clk 0:02:02.4]} 37. f4 {[%clk 0:00:53.7]}
37... h5+ {[%clk 0:01:54.3]} 38. Kg5 {[%clk 0:00:49]} 38... f6# {[%clk
0:01:52.3]} 0-1

[Event "Live Chess"]
[Site "Chess.com"]
[Date "2023.05.21"]
[Round "-"]
[White "Man-Del-Brot"]
[Black "GiacoPietro"]
[Result "1-0"]
[WhiteElo "1068"]
[BlackElo "627"]
[TimeControl "300"]
[EndTime "16:11:57 PDT"]
[Termination "Man-Del-Brot won by resignation"]

1. d4 {[%clk 0:04:53.1]} 1... d5 {[%clk 0:04:56.5]} 2. Nf3 {[%clk 0:04:49.8]}
2... Nc6 {[%clk 0:04:54.1]} 3. Bf4 {[%clk 0:04:48.2]} 3... g6 {[%clk 0:04:43.5]}
4. e3 {[%clk 0:04:46.6]} 4... e6 {[%clk 0:04:37.5]} 5. c3 {[%clk 0:04:44.5]}
5... Nf6 {[%clk 0:04:33.5]} 6. h3 {[%clk 0:04:42.4]} 6... Bg7 {[%clk 0:04:31]}
7. Nbd2 {[%clk 0:04:36]} 7... O-O {[%clk 0:04:30.1]} 8. Be2 {[%clk 0:04:30.6]}
8... Ne7 {[%clk 0:04:25.4]} 9. g4 {[%clk 0:04:25.1]} 9... b6 {[%clk 0:04:16.1]}
10. Ne5 {[%clk 0:04:21.5]} 10... c5 {[%clk 0:04:08.7]} 11. g5 {[%clk 0:04:18.9]}
11... Nd7 {[%clk 0:03:59.3]} 12. h4 {[%clk 0:04:11.9]} 12... Nxe5 {[%clk
0:03:56.1]} 13. dxe5 {[%clk 0:04:10.4]} 13... Qc7 {[%clk 0:03:52.6]} 14. Nf3
{[%clk 0:04:06.8]} 14... Nc6 {[%clk 0:03:48.7]} 15. h5 {[%clk 0:04:04]} 15...
Bxe5 {[%clk 0:03:42.1]} 16. Bxe5 {[%clk 0:03:57.3]} 16... Nxe5 {[%clk
0:03:41.4]} 17. Nxe5 {[%clk 0:03:55.9]} 17... Qxe5 {[%clk 0:03:40.3]} 18. f4
{[%clk 0:03:51.4]} 18... Qe4 {[%clk 0:03:35.7]} 19. Bf3 {[%clk 0:03:47.9]} 19...
Qxe3+ {[%clk 0:03:27.4]} 20. Qe2 {[%clk 0:03:46.2]} 20... Qxe2+ {[%clk
0:03:16.6]} 21. Kxe2 {[%clk 0:03:44.5]} 21... Bb7 {[%clk 0:03:06.5]} 22. c4
{[%clk 0:03:42.7]} 22... Rab8 {[%clk 0:02:58.2]} 23. hxg6 {[%clk 0:03:35.2]}
23... hxg6 {[%clk 0:02:55.4]} 24. Rh6 {[%clk 0:03:31.7]} 24... dxc4 {[%clk
0:02:50.6]} 25. Bxb7 {[%clk 0:03:27.2]} 25... Rxb7 {[%clk 0:02:48.5]} 26. Rah1
{[%clk 0:03:27.1]} 26... f5 {[%clk 0:02:34.6]} 27. Rh8+ {[%clk 0:03:25.7]} 27...
Kf7 {[%clk 0:02:31.6]} 28. R1h7+ {[%clk 0:03:23.8]} 28... Ke8 {[%clk 0:02:25.8]}
29. Rxf8+ {[%clk 0:03:15.3]} 1-0

[Event "Live Chess"]
[Site "Chess.com"]
[Date "2023.05.21"]
[Round "-"]
[White "ms_lilley"]
[Black "Tushinskiy"]
[Result "0-1"]
[WhiteElo "588"]
[BlackElo "2169"]
[TimeControl "300"]
[EndTime "16:12:05 PDT"]
[Termination "Tushinskiy won by checkmate"]

1. d4 {[%clk 0:04:57.6]} 1... d5 {[%clk 0:04:59]} 2. e3 {[%clk 0:04:55.5]} 2...
c6 {[%clk 0:04:58.9]} 3. c4 {[%clk 0:04:51.1]} 3... e6 {[%clk 0:04:57.4]} 4. c5
{[%clk 0:04:49.3]} 4... Nf6 {[%clk 0:04:55.5]} 5. b4 {[%clk 0:04:47.3]} 5...
Nbd7 {[%clk 0:04:55.4]} 6. h3 {[%clk 0:04:45.4]} 6... e5 {[%clk 0:04:53.8]} 7.
Bb2 {[%clk 0:04:38.9]} 7... Qc7 {[%clk 0:04:52.4]} 8. Nf3 {[%clk 0:04:35.2]}
8... e4 {[%clk 0:04:51.4]} 9. Nfd2 {[%clk 0:04:31.2]} 9... Be7 {[%clk
0:04:50.3]} 10. Be2 {[%clk 0:04:25.9]} 10... O-O {[%clk 0:04:48.9]} 11. O-O
{[%clk 0:04:22.6]} 11... h6 {[%clk 0:04:47.9]} 12. Bg4 {[%clk 0:04:17.6]} 12...
Nxg4 {[%clk 0:04:46.7]} 13. hxg4 {[%clk 0:04:15.8]} 13... Nf6 {[%clk 0:04:45.5]}
14. g5 {[%clk 0:04:01]} 14... hxg5 {[%clk 0:04:43.1]} 15. g3 {[%clk 0:03:57.7]}
15... Bg4 {[%clk 0:04:40.3]} 16. Qb3 {[%clk 0:03:47.1]} 16... g6 {[%clk
0:04:38.3]} 17. Nc3 {[%clk 0:03:44.2]} 17... Kg7 {[%clk 0:04:36.7]} 18. b5
{[%clk 0:03:40.2]} 18... Rh8 {[%clk 0:04:35.5]} 19. Kg2 {[%clk 0:03:26.2]} 19...
Qd7 {[%clk 0:04:33]} 20. Rh1 {[%clk 0:03:19.4]} 20... Rxh1 {[%clk 0:04:23.3]}
21. Rxh1 {[%clk 0:03:16.1]} 21... Rh8 {[%clk 0:04:10]} 22. Rxh8 {[%clk
0:03:08.8]} 22... Kxh8 {[%clk 0:04:09.9]} 23. Nf1 {[%clk 0:03:06.6]} 23... Kg7
{[%clk 0:04:08]} 24. Nh2 {[%clk 0:03:04.9]} 24... Qf5 {[%clk 0:04:01.4]} 25. Qc2
{[%clk 0:02:52]} 25... Bf3+ {[%clk 0:03:56.6]} 26. Nxf3 {[%clk 0:02:50.3]} 26...
exf3+ {[%clk 0:03:55.2]} 27. Kh2 {[%clk 0:02:41.9]} 27... Qxc2 {[%clk
0:03:55.1]} 28. Nd1 {[%clk 0:02:34.4]} 28... Ng4+ {[%clk 0:03:52.1]} 29. Kh3
{[%clk 0:02:31.8]} 29... Qxd1 {[%clk 0:03:52]} 30. Kxg4 {[%clk 0:02:30]} 30...
f5+ {[%clk 0:03:49.2]} 31. Kh3 {[%clk 0:02:22.6]} 31... Qh1# {[%clk 0:03:48.3]}
0-1

[Event "Live Chess"]
[Site "Chess.com"]
[Date "2023.05.21"]
[Round "-"]
[White "gmnorfolk"]
[Black "JoshMcK"]
[Result "1-0"]
[WhiteElo "2111"]
[BlackElo "1517"]
[TimeControl "300"]
[EndTime "16:12:08 PDT"]
[Termination "gmnorfolk won by resignation"]

1. d4 {[%clk 0:04:57.5]} 1... Nf6 {[%clk 0:04:58.3]} 2. c4 {[%clk 0:04:56.3]}
2... g6 {[%clk 0:04:57.1]} 3. Nc3 {[%clk 0:04:55.8]} 3... Bg7 {[%clk 0:04:56.2]}
4. e4 {[%clk 0:04:55.5]} 4... d6 {[%clk 0:04:54.9]} 5. Be2 {[%clk 0:04:55.2]}
5... O-O {[%clk 0:04:53.4]} 6. Be3 {[%clk 0:04:54.8]} 6... Nbd7 {[%clk
0:04:49.3]} 7. Nf3 {[%clk 0:04:52.1]} 7... e5 {[%clk 0:04:44.7]} 8. O-O {[%clk
0:04:50.6]} 8... exd4 {[%clk 0:04:42.5]} 9. Nxd4 {[%clk 0:04:47.7]} 9... Ne5
{[%clk 0:04:34.6]} 10. f3 {[%clk 0:04:44.9]} 10... Bd7 {[%clk 0:04:22.5]} 11.
Qd2 {[%clk 0:04:41.6]} 11... Nc6 {[%clk 0:04:20.9]} 12. Rfd1 {[%clk 0:04:35.5]}
12... Nxd4 {[%clk 0:04:10.2]} 13. Bxd4 {[%clk 0:04:32.7]} 13... Qe7 {[%clk
0:03:53.6]} 14. Rac1 {[%clk 0:04:27.8]} 14... h5 {[%clk 0:03:47.5]} 15. Nd5
{[%clk 0:04:19.8]} 15... Nxd5 {[%clk 0:03:45.7]} 16. cxd5 {[%clk 0:04:18.7]}
16... Bxd4+ {[%clk 0:03:40.8]} 17. Qxd4 {[%clk 0:04:18.6]} 17... Qe5 {[%clk
0:03:39.6]} 18. Qxe5 {[%clk 0:04:16.8]} 18... dxe5 {[%clk 0:03:39.5]} 19. Rxc7
{[%clk 0:04:16]} 19... Rfd8 {[%clk 0:03:34.4]} 20. Rdc1 {[%clk 0:04:10.2]} 20...
Rac8 {[%clk 0:03:30.8]} 21. Rxc8 {[%clk 0:04:05]} 21... Rxc8 {[%clk 0:03:30.7]}
22. Rxc8+ {[%clk 0:04:02.6]} 22... Bxc8 {[%clk 0:03:30.6]} 23. Bb5 {[%clk
0:03:58.8]} 23... a6 {[%clk 0:03:25.7]} 24. Ba4 {[%clk 0:03:57.7]} 24... Kf8
{[%clk 0:03:22.1]} 25. Kf2 {[%clk 0:03:50.9]} 25... Ke7 {[%clk 0:03:20.9]} 26.
Ke3 {[%clk 0:03:47.8]} 26... Kd6 {[%clk 0:03:17.5]} 27. Bd1 {[%clk 0:03:46.4]}
27... f5 {[%clk 0:03:15.1]} 28. g3 {[%clk 0:03:44.2]} 28... g5 {[%clk
0:03:10.3]} 29. f4 {[%clk 0:03:32]} 29... gxf4+ {[%clk 0:03:04.5]} 30. gxf4
{[%clk 0:03:31.9]} 30... fxe4 {[%clk 0:03:01.8]} 31. Kxe4 {[%clk 0:03:30.2]}
31... exf4 {[%clk 0:03:00.6]} 32. Bxh5 {[%clk 0:03:26.3]} 32... b6 {[%clk
0:02:46]} 33. h4 {[%clk 0:03:22.2]} 33... Bb7 {[%clk 0:02:42.3]} 34. Bf7 {[%clk
0:03:17.5]} 34... Ke7 {[%clk 0:02:35.1]} 35. Be6 {[%clk 0:03:13.5]} 35... Kd6
{[%clk 0:02:22.8]} 36. Kxf4 {[%clk 0:03:11.8]} 36... Bxd5 {[%clk 0:02:20.6]} 37.
Bxd5 {[%clk 0:03:10.4]} 37... Kxd5 {[%clk 0:02:20.5]} 38. h5 {[%clk 0:03:10.1]}
38... Ke6 {[%clk 0:02:20.4]} 39. h6 {[%clk 0:03:09.1]} 39... Kf7 {[%clk
0:02:20.3]} 40. h7 {[%clk 0:03:08.7]} 40... Kg7 {[%clk 0:02:18.8]} 41. Ke5
{[%clk 0:03:08.4]} 41... Kxh7 {[%clk 0:02:18]} 42. Kd6 {[%clk 0:03:08]} 42...
Kg7 {[%clk 0:02:17.9]} 43. Kc6 {[%clk 0:03:07.5]} 43... Kf7 {[%clk 0:02:17.8]}
44. Kxb6 {[%clk 0:03:06.6]} 44... Ke7 {[%clk 0:02:16.5]} 45. Kxa6 {[%clk
0:03:05.9]} 1-0

[Event "Live Chess"]
[Site "Chess.com"]
[Date "2023.05.21"]
[Round "-"]
[White "Pablo_dmp"]
[Black "KeithArkell"]
[Result "0-1"]
[WhiteElo "1888"]
[BlackElo "2611"]
[TimeControl "300"]
[EndTime "16:12:08 PDT"]
[Termination "KeithArkell won by resignation"]

1. e4 {[%clk 0:04:59.4]} 1... e6 {[%clk 0:04:57.1]} 2. Nf3 {[%clk 0:04:57.6]}
2... d5 {[%clk 0:04:56.3]} 3. Nc3 {[%clk 0:04:56.9]} 3... dxe4 {[%clk
0:04:55.6]} 4. Nxe4 {[%clk 0:04:55.7]} 4... Nf6 {[%clk 0:04:52.6]} 5. Bd3 {[%clk
0:04:54.6]} 5... Nxe4 {[%clk 0:04:51.5]} 6. Bxe4 {[%clk 0:04:54]} 6... Nd7
{[%clk 0:04:51.1]} 7. c3 {[%clk 0:04:47.8]} 7... Nf6 {[%clk 0:04:49.7]} 8. Bc2
{[%clk 0:04:47]} 8... Bd6 {[%clk 0:04:47.9]} 9. d4 {[%clk 0:04:45.5]} 9... O-O
{[%clk 0:04:45.2]} 10. O-O {[%clk 0:04:40.1]} 10... c5 {[%clk 0:04:44.5]} 11.
dxc5 {[%clk 0:04:35.7]} 11... Bxc5 {[%clk 0:04:43.4]} 12. Qxd8 {[%clk
0:04:35.6]} 12... Rxd8 {[%clk 0:04:42.6]} 13. Bg5 {[%clk 0:04:34.6]} 13... b6
{[%clk 0:04:41.1]} 14. Rad1 {[%clk 0:04:32.3]} 14... Bb7 {[%clk 0:04:40]} 15.
Rxd8+ {[%clk 0:04:26.4]} 15... Rxd8 {[%clk 0:04:38.8]} 16. Bxf6 {[%clk
0:04:25.7]} 16... gxf6 {[%clk 0:04:37.8]} 17. Ne1 {[%clk 0:04:21.5]} 17... Rd2
{[%clk 0:04:34.8]} 18. h3 {[%clk 0:04:08.8]} 18... Ba6 {[%clk 0:04:33.6]} 19.
Bd3 {[%clk 0:03:56.7]} 19... Bxd3 {[%clk 0:04:31.6]} 20. Nxd3 {[%clk 0:03:56.4]}
20... Rxd3 {[%clk 0:04:31]} 21. b4 {[%clk 0:03:53.2]} 21... Rxc3 {[%clk
0:04:28.1]} 22. bxc5 {[%clk 0:03:51.9]} 22... Rxc5 {[%clk 0:04:27.3]} 23. Rd1
{[%clk 0:03:46.2]} 23... Ra5 {[%clk 0:04:25.3]} 24. Rd2 {[%clk 0:03:44.6]} 24...
f5 {[%clk 0:04:24.3]} 25. Kf1 {[%clk 0:03:44]} 25... h5 {[%clk 0:04:23.5]} 26.
Ke2 {[%clk 0:03:42.6]} 26... Ra3 {[%clk 0:04:22.3]} 27. f3 {[%clk 0:03:39.8]}
27... h4 {[%clk 0:04:21.4]} 28. Kf2 {[%clk 0:03:38.5]} 28... Kg7 {[%clk
0:04:20.8]} 29. g3 {[%clk 0:03:37.7]} 29... hxg3+ {[%clk 0:04:20.5]} 30. Kxg3
{[%clk 0:03:37.5]} 30... Kg6 {[%clk 0:04:20.1]} 31. Kf4 {[%clk 0:03:34.4]} 31...
Kf6 {[%clk 0:04:17]} 32. Kg3 {[%clk 0:03:31.6]} 32... Ra4 {[%clk 0:04:15]} 33.
f4 {[%clk 0:03:29]} 33... Kg6 {[%clk 0:04:13.5]} 34. h4 {[%clk 0:03:24.4]} 34...
Ra3+ {[%clk 0:04:12.7]} 35. Kf2 {[%clk 0:03:22.3]} 35... Kh5 {[%clk 0:04:12]}
0-1

[Event "Live Chess"]
[Site "Chess.com"]
[Date "2023.05.21"]
[Round "-"]
[White "ZackirtyChess"]
[Black "nigelst"]
[Result "0-1"]
[WhiteElo "1170"]
[BlackElo "1806"]
[TimeControl "300"]
[EndTime "16:12:19 PDT"]
[Termination "nigelst won by checkmate"]

1. e4 {[%clk 0:04:55.9]} 1... c6 {[%clk 0:04:58.8]} 2. d4 {[%clk 0:04:54.9]}
2... d5 {[%clk 0:04:57.8]} 3. Nc3 {[%clk 0:04:50.9]} 3... dxe4 {[%clk 0:04:56]}
4. Nxe4 {[%clk 0:04:50.8]} 4... Nf6 {[%clk 0:04:55.1]} 5. Qd3 {[%clk 0:04:48.6]}
5... Nbd7 {[%clk 0:04:51.1]} 6. Qe3 {[%clk 0:04:43.6]} 6... Nxe4 {[%clk
0:04:49.9]} 7. Qxe4 {[%clk 0:04:42.1]} 7... Nf6 {[%clk 0:04:49.4]} 8. Qd3 {[%clk
0:04:38.7]} 8... Bg4 {[%clk 0:04:36.5]} 9. Bd2 {[%clk 0:04:30.5]} 9... Bh5
{[%clk 0:04:34.6]} 10. h3 {[%clk 0:04:26.4]} 10... Bg6 {[%clk 0:04:33.4]} 11.
Qe3 {[%clk 0:04:17.1]} 11... e6 {[%clk 0:04:31.7]} 12. Nf3 {[%clk 0:04:15.4]}
12... Bd6 {[%clk 0:04:26.2]} 13. Bd3 {[%clk 0:04:13]} 13... Bc7 {[%clk
0:04:23.3]} 14. Bxg6 {[%clk 0:04:10.9]} 14... hxg6 {[%clk 0:04:21.4]} 15. O-O-O
{[%clk 0:04:09]} 15... Ba5 {[%clk 0:04:13]} 16. Bxa5 {[%clk 0:04:06.2]} 16...
Qxa5 {[%clk 0:04:10.7]} 17. a3 {[%clk 0:04:02]} 17... O-O {[%clk 0:04:07]} 18.
Qg5 {[%clk 0:03:53.6]} 18... b5 {[%clk 0:03:59.6]} 19. c4 {[%clk 0:03:45.9]}
19... Qa4 {[%clk 0:03:56.2]} 20. cxb5 {[%clk 0:03:43.5]} 20... cxb5 {[%clk
0:03:53]} 21. Ne5 {[%clk 0:03:38.7]} 21... Rac8+ {[%clk 0:03:51.6]} 22. Kd2
{[%clk 0:03:28]} 22... Qxd4+ {[%clk 0:03:29.9]} 23. Ke1 {[%clk 0:03:25.4]} 23...
Qxb2 {[%clk 0:03:14.8]} 24. Kf1 {[%clk 0:03:18.5]} 24... Ne4 {[%clk 0:03:07.7]}
25. Qg4 {[%clk 0:03:15.6]} 25... Qxf2# {[%clk 0:03:05.4]} 0-1